Workbook

Sheet riport1
A1: átlag | B1: =AVERAGE(B6:B1147) -> 6.172839506
A2: medián | B2: =MEDIAN(B6:B1147) -> 3
A3: max | B3: =MAX(B6:B652) -> 13
A4: min | B4: =MIN(B6:B1147) -> 1
A5: Sorcímkék | B5: Mennyiség / maradék
A6: 0 | B6: 9
A7: 1 | B7: 6
A8: 2 | B8: 1
A9: 3 | B9: 3
A10: 4 | B10: 2
A11: 5 | B11: 7
A12: 7 | B12: 3
A13: 8 | B13: 7
A14: 9 | B14: 3
A15: 10 | B15: 2
A16: 11 | B16: 8
A17: 13 | B17: 1
A18: 14 | B18: 3
A19: 15 | B19: 3
A20: 17 | B20: 10
A21: 18 | B21: 1
A22: 19 | B22: 3
A23: 20 | B23: 5
A24: 21 | B24: 2
A25: 22 | B25: 1
A26: 23 | B26: 3
A27: 24 | B27: 1
A28: 25 | B28: 2
A29: 26 | B29: 1
A30: 27 | B30: 6
A31: 28 | B31: 4
A32: 29 | B32: 9
A33: 30 | B33: 2
A34: 31 | B34: 1
A35: 32 | B35: 1
A36: 33 | B36: 4
A37: 34 | B37: 3
A38: 35 | B38: 8
A39: 36 | B39: 2
A40: 37 | B40: 3
A41: 38 | B41: 2
A42: 39 | B42: 4
A43: 41 | B43: 8
A44: 42 | B44: 3
A45: 43 | B45: 2
A46: 44 | B46: 1
A47: 45 | B47: 3
A48: 46 | B48: 4
A49: 47 | B49: 13
A50: 48 | B50: 1
A51: 49 | B51: 3
A52: 50 | B52: 1
A53: 52 | B53: 1
A54: 53 | B54: 8
A55: 54 | B55: 3
A56: 55 | B56: 3
A57: 56 | B57: 4
A58: 57 | B58: 3
A59: 58 | B59: 3
A60: 59 | B60: 7
A61: 60 | B61: 2
A62: 61 | B62: 3
A63: 62 | B63: 1
A64: 63 | B64: 2
A65: 64 | B65: 4
A66: 65 | B66: 9
A67: 66 | B67: 2
A68: 67 | B68: 1
A69: 68 | B69: 2
A70: 69 | B70: 3
A71: 70 | B71: 1
A72: 71 | B72: 5
A73: 72 | B73: 2
A74: 74 | B74: 2
A75: 75 | B75: 1
A76: 76 | B76: 2
A77: 77 | B77: 5
A78: 78 | B78: 5
A79: 79 | B79: 3
A80: 80 | B80: 1
A81: 81 | B81: 7
A82: 82 | B82: 1
A83: 83 | B83: 2
A84: 84 | B84: 1
A85: 86 | B85: 2
A86: 87 | B86: 2
A87: 88 | B87: 3
A88: 89 | B88: 5
A89: 90 | B89: 2
A90: 91 | B90: 3
A91: 92 | B91: 1
A92: 93 | B92: 1
A93: 94 | B93: 3
A94: 95 | B94: 7
A95: 96 | B95: 3
A96: 97 | B96: 1
A97: 98 | B97: 2
A98: 99 | B98: 2
A99: 100 | B99: 5
A100: 101 | B100: 2
A101: 103 | B101: 3
A102: 104 | B102: 4
A103: 105 | B103: 1
A104: 106 | B104: 5
A105: 107 | B105: 1
A106: 108 | B106: 3
A107: 109 | B107: 3
A108: 110 | B108: 3
A109: 111 | B109: 1
A110: 112 | B110: 5
A111: 113 | B111: 1
A112: 114 | B112: 3
A113: 115 | B113: 4
A114: 116 | B114: 6
A115: 117 | B115: 2
A116: 118 | B116: 5
A117: 119 | B117: 3
A118: 120 | B118: 4
A119: 121 | B119: 2
A120: 122 | B120: 1
A121: 123 | B121: 6
A122: 124 | B122: 2
A123: 125 | B123: 2
A124: 127 | B124: 5
A125: 128 | B125: 2
A126: 129 | B126: 3
A127: 130 | B127: 5
A128: 131 | B128: 1
A129: 132 | B129: 2
A130: 133 | B130: 4
A131: 134 | B131: 2
A132: 135 | B132: 2
A133: 136 | B133: 9
A134: 138 | B134: 1
A135: 139 | B135: 5
A136: 140 | B136: 1
A137: 141 | B137: 1
A138: 142 | B138: 4
A139: 143 | B139: 2
A140: 144 | B140: 4
A141: 145 | B141: 4
A142: 146 | B142: 5
A143: 148 | B143: 6
A144: 149 | B144: 1
A145: 150 | B145: 2
A146: 151 | B146: 5
A147: 152 | B147: 2
A148: 153 | B148: 2
A149: 154 | B149: 4
A150: 155 | B150: 2
A151: 156 | B151: 1
A152: 157 | B152: 3
A153: 158 | B153: 5
A154: 159 | B154: 4
A155: 160 | B155: 5
A156: 161 | B156: 5
A157: 162 | B157: 2
A158: 163 | B158: 5
A159: 164 | B159: 5
A160: 165 | B160: 6
A161: 166 | B161: 3
A162: 167 | B162: 1
A163: 168 | B163: 1
A164: 169 | B164: 2
A165: 170 | B165: 4
A166: 171 | B166: 2
A167: 172 | B167: 1
A168: 173 | B168: 1
A169: 174 | B169: 2
A170: 175 | B170: 4
A171: 176 | B171: 2
A172: 177 | B172: 2
A173: 178 | B173: 6
A174: 179 | B174: 3
A175: 180 | B175: 1
A176: 181 | B176: 2
A177: 182 | B177: 1
A178: 183 | B178: 2
A179: 184 | B179: 7
A180: 185 | B180: 1
A181: 186 | B181: 1
A182: 187 | B182: 3
A183: 188 | B183: 5
A184: 189 | B184: 3
A185: 190 | B185: 1
A186: 191 | B186: 5
A187: 193 | B187: 8
A188: 194 | B188: 2
A189: 195 | B189: 4
A190: 196 | B190: 5
A191: 197 | B191: 2
A192: 198 | B192: 7
A193: 199 | B193: 3
A194: 200 | B194: 1
A195: 201 | B195: 5
A196: 202 | B196: 4
A197: 203 | B197: 1
A198: 204 | B198: 2
A199: 205 | B199: 1
A200: 206 | B200: 4
... 453 more rows

Sheet riport2
A3: Sorcímkék | B3: Mennyiség / hossz
A4: 1 | B4: 1
A5: 4 | B5: 19
A6: 5 | B6: 202
A7: 6 | B7: 1778
A8: Végösszeg | B8: 2000

Sheet 2000_701
A1: sorszám | B1: rnd | C1: maradék | D1: hossz | E1: klasszikus | F1: hash | G1: autoszuro | I1: hash_ell | J1: teszt | K1: =B1 -> rnd | L1: autoszuro | M1: klasszikus | N1: hash (csoport-elemszám) | O1: hash2
A2: 1 | B2: 1 | C2: =INT((B2/701-INT(B2/701))*701) -> 1 | D2: =LEN(B2) -> 1 | I2: =VLOOKUP(K2,$B$2:$C$2001,2,0) -> 286 | J2: 1 | K2: =B200 -> 351487 | L2: 1 | M2: 200 | N2: 2 | O2: 286
A3: 2 | B3: 27706 | C3: =INT((B3/701-INT(B3/701))*701) -> 367 | D3: =LEN(B3) -> 5 | I3: =VLOOKUP(K3,$B$2:$C$2001,2,0) -> 99 | J3: 2 | K3: =B400 -> 898080 | L3: 1 | M3: 400 | N3: 2 | O3: 99
A4: 3 | B4: 929067 | C4: 242 | D4: 6 | I4: 133 | J4: 3 | K4: =B600 -> 429847 | L4: 1 | M4: 600 | N4: 4 | O4: 133
A5: 4 | B5: 756698 | C5: 319 | D5: 6 | I5: 349 | J5: 4 | K5: =B800 -> 226071 | L5: 1 | M5: 800 | N5: 4 | O5: 349
A6: 5 | B6: 252121 | C6: 461 | D6: 6 | I6: 418 | J6: 5 | K6: =B1000 -> 488314 | L6: 1 | M6: 1000 | N6: 2 | O6: 418
A7: 6 | B7: 641599 | C7: 184 | D7: 6 | I7: 450 | J7: 6 | K7: =B1200 -> 19377 | L7: 1 | M7: 1200 | N7: 2 | O7: 450
A8: 7 | B8: 677042 | C8: 576 | D8: 6 | I8: 456 | J8: 7 | K8: =B1400 -> 493259 | L8: 1 | M8: 1400 | N8: 1 | O8: 456
A9: 8 | B9: 807940 | C9: 387 | D9: 6 | I9: 403 | J9: 8 | K9: =B1600 -> 37557 | L9: 1 | M9: 1600 | N9: 5 | O9: 403
A10: 9 | B10: 573386 | C10: 668 | D10: 6 | I10: 389 | J10: 9 | K10: =B1800 -> 552077 | L10: 1 | M10: 1800 | N10: 3 | O10: 389
A11: 10 | B11: 450060 | C11: 17 | D11: 6 | I11: 21 | J11: 10 | K11: =B2000 -> 933052 | L11: 1 | M11: 2000 | N11: 2 | O11: 21
A12: 11 | B12: 941977 | C12: 534 | D12: 6 | K12: kezdete | L12: 2020-09-01T18:23:18.640 | M12: 2020-09-01T18:23:00.440 | N12: 2020-09-01T18:23:11.280
A13: 12 | B13: 195644 | C13: 65 | D13: 6 | K13: vége | L13: 2020-09-01T18:23:18.790 | M13: 2020-09-01T18:23:00.810 | N13: 2020-09-01T18:23:11.460
A14: 13 | B14: 516534 | C14: 597 | D14: 6 | K14: eltérés | L14: =L13-L12 -> 00:00:00.150 | M14: =M13-M12 -> 00:00:00.370 | N14: =N13-N12 -> 00:00:00.180
A15: 14 | B15: 907821 | C15: 25 | D15: 6
A16: 15 | B16: 366751 | C16: 127 | D16: 6
A17: 16 | B17: 455560 | C17: 611 | D17: 6
A18: 17 | B18: 702065 | C18: 364 | D18: 6
A19: 18 | B19: 704765 | C19: 260 | D19: 6
A20: 19 | B20: 264954 | C20: 677 | D20: 6
A21: 20 | B21: 255406 | C21: 242 | D21: 6
A22: 21 | B22: 731128 | C22: 685 | D22: 6
A23: 22 | B23: 331206 | C23: 334 | D23: 6
A24: 23 | B24: 387023 | C24: 71 | D24: 6
A25: 24 | B25: 665692 | C25: 442 | D25: 6
A26: 25 | B26: 233256 | C26: 524 | D26: 6
A27: 26 | B27: 817657 | C27: 291 | D27: 6
A28: 27 | B28: 548763 | C28: 581 | D28: 6
A29: 28 | B29: 303995 | C29: 461 | D29: 6
A30: 29 | B30: 139804 | C30: 305 | D30: 6
A31: 30 | B31: 70482 | C31: 382 | D31: 5
A32: 31 | B32: 208658 | C32: 460 | D32: 6
A33: 32 | B33: 670080 | C33: 624 | D33: 6
A34: 33 | B34: 237397 | C34: 458 | D34: 6
A35: 34 | B35: 306466 | C35: 129 | D35: 6
A36: 35 | B36: 377566 | C36: 427 | D36: 6
A37: 36 | B37: 253587 | C37: 525 | D37: 6
A38: 37 | B38: 611093 | C38: 522 | D38: 6
A39: 38 | B39: 951048 | C39: 492 | D39: 6
A40: 39 | B40: 634181 | C40: 477 | D40: 6
A41: 40 | B41: 30184 | C41: 41 | D41: 5
A42: 41 | B42: 67913 | C42: 617 | D42: 5
A43: 42 | B43: 369903 | C43: 475 | D43: 6
A44: 43 | B44: 489951 | C44: 653 | D44: 6
A45: 44 | B45: 408641 | C45: 659 | D45: 6
A46: 45 | B46: 62025 | C46: 337 | D46: 5
A47: 46 | B47: 324753 | C47: 190 | D47: 6
A48: 47 | B48: 236399 | C48: 161 | D48: 6
A49: 48 | B49: 738047 | C49: 594 | D49: 6
A50: 49 | B50: 339416 | C50: 132 | D50: 6
A51: 50 | B51: 42343 | C51: 282 | D51: 5
A52: 51 | B52: 697718 | C52: 222 | D52: 6
A53: 52 | B53: 76296 | C53: 588 | D53: 5
A54: 53 | B54: 657943 | C54: 404 | D54: 6
A55: 54 | B55: 956763 | C55: 599 | D55: 6
A56: 55 | B56: 652467 | C56: 537 | D56: 6
A57: 56 | B57: 4942 | C57: 34 | D57: 4
A58: 57 | B58: 15750 | C58: 328 | D58: 5
A59: 58 | B59: 247508 | C59: 54 | D59: 6
A60: 59 | B60: 275334 | C60: 542 | D60: 6
A61: 60 | B61: 480098 | C61: 614 | D61: 6
A62: 61 | B62: 706605 | C62: 698 | D62: 6
A63: 62 | B63: 979462 | C63: 165 | D63: 6
A64: 63 | B64: 609650 | C64: 481 | D64: 6
A65: 64 | B65: 488462 | C65: 566 | D65: 6
A66: 65 | B66: 357815 | C66: 304 | D66: 6
A67: 66 | B67: 597829 | C67: =INT((B67/701-INT(B67/701))*701) -> 576 | D67: =LEN(B67) -> 6
A68: 67 | B68: 818187 | C68: 119 | D68: 6
A69: 68 | B69: 892535 | C69: 161 | D69: 6
A70: 69 | B70: 324754 | C70: 191 | D70: 6
A71: 70 | B71: 306483 | C71: 145 | D71: 6
A72: 71 | B72: 678788 | C72: 219 | D72: 6
A73: 72 | B73: 323904 | C73: 41 | D73: 6
A74: 73 | B74: 924784 | C74: 165 | D74: 6
A75: 74 | B75: 64465 | C75: 673 | D75: 5
A76: 75 | B76: 872239 | C76: 195 | D76: 6
A77: 76 | B77: 96235 | C77: 198 | D77: 5
A78: 77 | B78: 531546 | C78: 187 | D78: 6
A79: 78 | B79: 349612 | C79: 513 | D79: 6
A80: 79 | B80: 423748 | C80: 344 | D80: 6
A81: 80 | B81: 1919 | C81: 517 | D81: 4
A82: 81 | B82: 300988 | C82: 258 | D82: 6
A83: 82 | B83: 972977 | C83: 689 | D83: 6
A84: 83 | B84: 256166 | C84: 301 | D84: 6
A85: 84 | B85: 205908 | C85: 515 | D85: 6
A86: 85 | B86: 442829 | C86: 498 | D86: 6
A87: 86 | B87: 66230 | C87: 336 | D87: 5
A88: 87 | B88: 168912 | C88: 672 | D88: 6
A89: 88 | B89: 965645 | C89: 368 | D89: 6
A90: 89 | B90: 707319 | C90: 9 | D90: 6
A91: 90 | B91: 452608 | C91: 463 | D91: 6
A92: 91 | B92: 857026 | C92: 403 | D92: 6
A93: 92 | B93: 74530 | C93: 223 | D93: 5
A94: 93 | B94: 388862 | C94: 507 | D94: 6
A95: 94 | B95: 940251 | C95: 209 | D95: 6
A96: 95 | B96: 46098 | C96: 533 | D96: 5
A97: 96 | B97: 33939 | C97: 290 | D97: 5
A98: 97 | B98: 786195 | C98: 374 | D98: 6
A99: 98 | B99: 152350 | C99: 233 | D99: 6
A100: 99 | B100: 674650 | C100: 288 | D100: 6
A101: 100 | B101: 706618 | C101: 9 | D101: 6
A102: 101 | B102: 595498 | C102: 348 | D102: 6
A103: 102 | B103: 454976 | C103: 26 | D103: 6
A104: 103 | B104: 917476 | C104: 568 | D104: 6
A105: 104 | B105: 42675 | C105: 615 | D105: 5
A106: 105 | B106: 264358 | C106: 81 | D106: 6
A107: 106 | B107: 729742 | C107: 0 | D107: 6
A108: 107 | B108: 201791 | C108: 604 | D108: 6
A109: 108 | B109: 973958 | C109: 268 | D109: 6
A110: 109 | B110: 80070 | C110: 155 | D110: 5
A111: 110 | B111: 134753 | C111: 161 | D111: 6
A112: 111 | B112: 319082 | C112: 127 | D112: 6
A113: 112 | B113: 904000 | C113: 410 | D113: 6
A114: 113 | B114: 302061 | C114: 631 | D114: 6
A115: 114 | B115: 967828 | C115: 447 | D115: 6
A116: 115 | B116: 769943 | C116: 244 | D116: 6
A117: 116 | B117: 58167 | C117: 685 | D117: 5
A118: 117 | B118: 402208 | C118: 534 | D118: 6
A119: 118 | B119: 820125 | C119: 655 | D119: 6
A120: 119 | B120: 354516 | C120: 510 | D120: 6
A121: 120 | B121: 798072 | C121: 333 | D121: 6
A122: 121 | B122: 893757 | C122: 683 | D122: 6
A123: 122 | B123: 377881 | C123: 41 | D123: 6
A124: 123 | B124: 580800 | C124: 371 | D124: 6
A125: 124 | B125: 544480 | C125: 504 | D125: 6
A126: 125 | B126: 154194 | C126: 675 | D126: 6
A127: 126 | B127: 324218 | C127: 356 | D127: 6
A128: 127 | B128: 583796 | C128: 564 | D128: 6
A129: 128 | B129: 423635 | C129: 231 | D129: 6
A130: 129 | B130: 222193 | C130: 677 | D130: 6
A131: 130 | B131: 43728 | C131: =INT((B131/701-INT(B131/701))*701) -> 266 | D131: =LEN(B131) -> 5
A132: 131 | B132: 408002 | C132: 20 | D132: 6
A133: 132 | B133: 230609 | C133: 681 | D133: 6
A134: 133 | B134: 484079 | C134: 389 | D134: 6
A135: 134 | B135: 559891 | C135: 493 | D135: 6
A136: 135 | B136: 642054 | C136: 638 | D136: 6
A137: 136 | B137: 682446 | C137: 373 | D137: 6
A138: 137 | B138: 869278 | C138: 37 | D138: 6
A139: 138 | B139: 662952 | C139: 507 | D139: 6
A140: 139 | B140: 438226 | C140: 101 | D140: 6
A141: 140 | B141: 595204 | C141: 55 | D141: 6
A142: 141 | B142: 126604 | C142: 424 | D142: 6
A143: 142 | B143: 940025 | C143: 684 | D143: 6
A144: 143 | B144: 648298 | C144: 573 | D144: 6
A145: 144 | B145: 497979 | C145: 269 | D145: 6
A146: 145 | B146: 30021 | C146: 579 | D146: 5
A147: 146 | B147: 731811 | C147: 667 | D147: 6
A148: 147 | B148: 923411 | C148: 194 | D148: 6
A149: 148 | B149: 192183 | C149: 108 | D149: 6
A150: 149 | B150: 607877 | C150: 109 | D150: 6
A151: 150 | B151: 627903 | C151: 507 | D151: 6
A152: 151 | B152: 755387 | C152: 409 | D152: 6
A153: 152 | B153: 823798 | C153: 123 | D153: 6
A154: 153 | B154: 586704 | C154: 668 | D154: 6
A155: 154 | B155: 571509 | C155: 193 | D155: 6
A156: 155 | B156: 402869 | C156: 495 | D156: 6
A157: 156 | B157: 96997 | C157: 259 | D157: 5
A158: 157 | B158: 441667 | C158: 36 | D158: 6
A159: 158 | B159: 768892 | C159: 595 | D159: 6
A160: 159 | B160: 844949 | C160: 243 | D160: 6
A161: 160 | B161: 264468 | C161: 191 | D161: 6
A162: 161 | B162: 954259 | C162: 197 | D162: 6
A163: 162 | B163: 126709 | C163: 528 | D163: 6
A164: 163 | B164: 29476 | C164: 33 | D164: 5
A165: 164 | B165: 792290 | C165: 160 | D165: 6
A166: 165 | B166: 523311 | C166: 365 | D166: 6
A167: 166 | B167: 449385 | C167: 44 | D167: 6
A168: 167 | B168: 607936 | C168: 169 | D168: 6
A169: 168 | B169: 820928 | C169: 57 | D169: 6
A170: 169 | B170: 391308 | C170: 149 | D170: 6
A171: 170 | B171: 421875 | C171: 573 | D171: 6
A172: 171 | B172: 762735 | C172: 47 | D172: 6
A173: 172 | B173: 338762 | C173: 179 | D173: 6
A174: 173 | B174: 280853 | C174: 452 | D174: 6
A175: 174 | B175: 337969 | C175: 87 | D175: 6
A176: 175 | B176: 285794 | C176: 487 | D176: 6
A177: 176 | B177: 640018 | C177: 5 | D177: 6
A178: 177 | B178: 315026 | C178: 277 | D178: 6
A179: 178 | B179: 834662 | C179: 471 | D179: 6
A180: 179 | B180: 621223 | C180: 136 | D180: 6
A181: 180 | B181: 387811 | C181: 157 | D181: 6
A182: 181 | B182: 442710 | C182: 379 | D182: 6
A183: 182 | B183: 595609 | C183: 460 | D183: 6
A184: 183 | B184: 792258 | C184: 128 | D184: 6
A185: 184 | B185: 311589 | C185: 344 | D185: 6
A186: 185 | B186: 217714 | C186: 403 | D186: 6
A187: 186 | B187: 825046 | C187: 670 | D187: 6
A188: 187 | B188: 731024 | C188: 582 | D188: 6
A189: 188 | B189: 496026 | C189: 418 | D189: 6
A190: 189 | B190: 439494 | C190: 668 | D190: 6
A191: 190 | B191: 246833 | C191: 81 | D191: 6
A192: 191 | B192: 150655 | C192: 640 | D192: 6
A193: 192 | B193: 307174 | C193: 136 | D193: 6
A194: 193 | B194: 54527 | C194: 549 | D194: 5
A195: 194 | B195: 942403 | C195: =INT((B195/701-INT(B195/701))*701) -> 259 | D195: =LEN(B195) -> 6
A196: 195 | B196: 421224 | C196: 623 | D196: 6
A197: 196 | B197: 22091 | C197: 359 | D197: 5
A198: 197 | B198: 708473 | C198: 463 | D198: 6
A199: 198 | B199: 143428 | C199: 424 | D199: 6
A200: 199 | B200: 351487 | C200: 286 | D200: 6
... 1801 more rows
